[Event "Early-Titled-Tuesday-Blitz-October-03-2023"]
[Site "Chess.com"]
[Date "2023.10.03"]
[Round "3"]
[White "OriTaichman"]
[Black "MikaelyanArman"]
[Result "0-1"]
[WhiteElo "2631"]
[BlackElo "2854"]
[TimeControl "180+1"]
[EndTime "8:29:37 PDT"]
[Termination "MikaelyanArman won by resignation"]

1. e4 {[%clk 0:02:55.8]} 1... e5 {[%clk 0:02:59.5]} 2. d4 {[%clk 0:02:53.5]}
2... exd4 {[%clk 0:02:59.1]} 3. Qxd4 {[%clk 0:02:52.8]} 3... Nc6 {[%clk
0:02:59.4]} 4. Qe3 {[%clk 0:02:52.9]} 4... Nf6 {[%clk 0:02:59.8]} 5. Nc3 {[%clk
0:02:53.1]} 5... Bb4 {[%clk 0:03:00.2]} 6. Bd2 {[%clk 0:02:53.6]} 6... O-O
{[%clk 0:03:00.6]} 7. O-O-O {[%clk 0:02:54.3]} 7... Re8 {[%clk 0:03:01.2]} 8.
Qg3 {[%clk 0:02:54.8]} 8... Nxe4 {[%clk 0:02:55.9]} 9. Nxe4 {[%clk 0:02:54.3]}
9... Rxe4 {[%clk 0:02:56.8]} 10. c3 {[%clk 0:02:54.9]} 10... Bd6 {[%clk
0:02:15.5]} 11. f4 {[%clk 0:02:44.3]} 11... Bf8 {[%clk 0:01:19.9]} 12. Bd3
{[%clk 0:02:41.8]} 12... Ra4 {[%clk 0:01:07.3]} 13. Nf3 {[%clk 0:02:40.9]} 13...
Qf6 {[%clk 0:00:33.9]} 14. Rhe1 {[%clk 0:01:41.9]} 14... Ne7 {[%clk 0:00:33.5]}
15. Ng5 {[%clk 0:01:33.4]} 15... g6 {[%clk 0:00:32.1]} 16. c4 {[%clk 0:01:09.6]}
16... Nf5 {[%clk 0:00:27.3]} 17. Qh3 {[%clk 0:01:03.5]} 17... h6 {[%clk
0:00:26.9]} 18. Bc3 {[%clk 0:01:03.1]} 18... Qc6 {[%clk 0:00:16.9]} 19. Bxf5
{[%clk 0:00:55.4]} 19... gxf5 {[%clk 0:00:17.2]} 20. Re8 {[%clk 0:00:50]} 20...
Rxc4 {[%clk 0:00:17.5]} 21. Rde1 {[%clk 0:00:21]} 21... Rxc3+ {[%clk 0:00:14.3]}
22. bxc3 {[%clk 0:00:21.9]} 22... d5 {[%clk 0:00:08.4]} 23. Qg3 {[%clk
0:00:05.3]} 23... Qg6 {[%clk 0:00:08.5]} 24. Nxf7 {[%clk 0:00:02.8]} 24... Qxg3
{[%clk 0:00:06.9]} 25. Nxh6+ {[%clk 0:00:03.7]} 25... Kg7 {[%clk 0:00:06.7]} 26.
hxg3 {[%clk 0:00:04.4]} 26... Ba3+ {[%clk 0:00:04.4]} 27. Kc2 {[%clk 0:00:03.9]}
27... Kxh6 {[%clk 0:00:05]} 28. Rh1+ {[%clk 0:00:04.2]} 28... Kg7 {[%clk
0:00:04.6]} 29. Rhh8 {[%clk 0:00:05.1]} 29... a5 {[%clk 0:00:01.9]} 30. Rhg8+
{[%clk 0:00:05]} 30... Kf7 {[%clk 0:00:01.7]} 31. Rxc8 {[%clk 0:00:05.7]} 31...
Ra6 {[%clk 0:00:01.5]} 32. Rgd8 {[%clk 0:00:04.5]} 32... Bd6 {[%clk 0:00:01.6]}
33. Rd7+ {[%clk 0:00:03.8]} 33... Ke6 {[%clk 0:00:01.7]} 34. Rh7 {[%clk
0:00:04.3]} 34... d4 {[%clk 0:00:02.3]} 35. Re8+ {[%clk 0:00:04]} 35... Kd5
{[%clk 0:00:02.8]} 36. cxd4 {[%clk 0:00:03.9]} 36... Kxd4 {[%clk 0:00:03.5]} 37.
Rf7 {[%clk 0:00:03.9]} 37... a4 {[%clk 0:00:03.4]} 38. Rxf5 {[%clk 0:00:03.8]}
38... a3 {[%clk 0:00:04]} 39. g4 {[%clk 0:00:03.3]} 39... Rb6 {[%clk 0:00:04.6]}
40. Re2 {[%clk 0:00:02.1]} 40... Rb2+ {[%clk 0:00:04.9]} 41. Kd1 {[%clk
0:00:02.8]} 41... Rb1+ {[%clk 0:00:05.5]} 42. Kd2 {[%clk 0:00:03.5]} 42... Bb4+
{[%clk 0:00:05]} 43. Kc2 {[%clk 0:00:03.8]} 43... Rb2+ {[%clk 0:00:05.7]} 44.
Kd1 {[%clk 0:00:04.4]} 44... Kd3 {[%clk 0:00:05.2]} 45. Rd5+ {[%clk 0:00:04]}
45... Kc4 {[%clk 0:00:05.7]} 46. Rxb2 {[%clk 0:00:02.2]} 46... axb2 {[%clk
0:00:06.6]} 47. Kc2 {[%clk 0:00:02.5]} 47... Kxd5 {[%clk 0:00:06.8]} 48. Kxb2
{[%clk 0:00:03.4]} 48... Ke4 {[%clk 0:00:07.3]} 49. f5 {[%clk 0:00:03.6]} 49...
Be7 {[%clk 0:00:07.5]} 50. Kb3 {[%clk 0:00:04.2]} 50... Kf4 {[%clk 0:00:07.1]}
51. Kc4 {[%clk 0:00:04.5]} 51... Kxg4 {[%clk 0:00:07.3]} 52. a4 {[%clk 0:00:05]}
52... Kxf5 {[%clk 0:00:07.7]} 53. a5 {[%clk 0:00:04.6]} 53... Bd6 {[%clk
0:00:07.6]} 54. Kb5 {[%clk 0:00:05.2]} 54... Kg4 {[%clk 0:00:07.4]} 55. a6
{[%clk 0:00:05.7]} 55... bxa6+ {[%clk 0:00:07.6]} 56. Kxa6 {[%clk 0:00:06.6]}
56... Kg3 {[%clk 0:00:07.8]} 57. Kb5 {[%clk 0:00:07.5]} 57... Kxg2 {[%clk
0:00:08.7]} 58. Kc6 {[%clk 0:00:07.8]} 58... Kf3 {[%clk 0:00:09.6]} 0-1

[Event "Early-Titled-Tuesday-Blitz-October-03-2023"]
[Site "Chess.com"]
[Date "2023.10.03"]
[Round "3"]
[White "CarlosjPineror"]
[Black "MatthewG-p4p"]
[Result "0-1"]
[WhiteElo "2503"]
[BlackElo "2827"]
[TimeControl "180+1"]
[EndTime "8:29:37 PDT"]
[Termination "MatthewG-p4p won by resignation"]

1. e4 {[%clk 0:02:59.5]} 1... e6 {[%clk 0:02:59.6]} 2. d4 {[%clk 0:02:57]} 2...
d5 {[%clk 0:03:00.3]} 3. e5 {[%clk 0:02:57.4]} 3... c5 {[%clk 0:03:00.1]} 4. c3
{[%clk 0:02:57.6]} 4... Qb6 {[%clk 0:03:00.8]} 5. Nf3 {[%clk 0:02:57.7]} 5...
Nc6 {[%clk 0:03:01.4]} 6. a3 {[%clk 0:02:57.6]} 6... Nh6 {[%clk 0:03:01.4]} 7.
b4 {[%clk 0:02:56.5]} 7... cxd4 {[%clk 0:02:58.6]} 8. cxd4 {[%clk 0:02:57.4]}
8... Nf5 {[%clk 0:02:59.2]} 9. Bb2 {[%clk 0:02:57.4]} 9... Bd7 {[%clk
0:02:58.9]} 10. g4 {[%clk 0:02:54.7]} 10... Nfe7 {[%clk 0:02:58.9]} 11. Nc3
{[%clk 0:02:54.1]} 11... Na5 {[%clk 0:02:58.5]} 12. Nd2 {[%clk 0:02:42]} 12...
Rc8 {[%clk 0:02:57]} 13. Na4 {[%clk 0:02:12.6]} 13... Qc6 {[%clk 0:02:53.5]} 14.
Nc5 {[%clk 0:02:11.2]} 14... Nc4 {[%clk 0:02:53.7]} 15. Bc1 {[%clk 0:02:01.6]}
15... a5 {[%clk 0:02:43.9]} 16. Bd3 {[%clk 0:01:53.2]} 16... b6 {[%clk
0:02:42.8]} 17. Nxd7 {[%clk 0:01:52.6]} 17... Qxd7 {[%clk 0:02:43.7]} 18. O-O
{[%clk 0:01:41.6]} 18... axb4 {[%clk 0:02:36.9]} 19. axb4 {[%clk 0:01:40.4]}
19... Nc6 {[%clk 0:02:37.5]} 20. Nxc4 {[%clk 0:01:30.9]} 20... dxc4 {[%clk
0:02:37.3]} 21. Bxc4 {[%clk 0:01:30.9]} 21... Bxb4 {[%clk 0:02:07.3]} 22. Be3
{[%clk 0:01:12.8]} 22... O-O {[%clk 0:02:05.8]} 23. Qd3 {[%clk 0:01:05.9]} 23...
Rfd8 {[%clk 0:01:57.8]} 24. Rfd1 {[%clk 0:01:04.3]} 24... Qe7 {[%clk 0:01:29.2]}
25. Qe4 {[%clk 0:01:00.7]} 25... Bc3 {[%clk 0:00:53.8]} 26. Rac1 {[%clk
0:00:46.5]} 26... Qb4 {[%clk 0:00:53]} 27. Bd3 {[%clk 0:00:46.1]} 27... g6
{[%clk 0:00:50.9]} 28. Rb1 {[%clk 0:00:42.5]} 28... Qa5 {[%clk 0:00:48.2]} 29.
Bb5 {[%clk 0:00:41.3]} 29... Nb4 {[%clk 0:00:39.4]} 30. Bf1 {[%clk 0:00:30.5]}
30... Nd5 {[%clk 0:00:38.9]} 31. Bh6 {[%clk 0:00:30.6]} 31... Qa2 {[%clk
0:00:31.5]} 32. h4 {[%clk 0:00:27.9]} 32... Bb4 {[%clk 0:00:27.2]} 33. Qf3
{[%clk 0:00:21]} 33... Be7 {[%clk 0:00:24.6]} 34. h5 {[%clk 0:00:20.6]} 34...
Nc3 {[%clk 0:00:16.4]} 35. Rbc1 {[%clk 0:00:17.3]} 35... Nxd1 {[%clk 0:00:15]}
36. Rxd1 {[%clk 0:00:18.2]} 36... Qd5 {[%clk 0:00:14.1]} 37. Qf4 {[%clk
0:00:16.7]} 37... Qb3 {[%clk 0:00:13.2]} 38. Be2 {[%clk 0:00:15]} 38... Qc2
{[%clk 0:00:12.9]} 39. Bf3 {[%clk 0:00:14.4]} 39... b5 {[%clk 0:00:12.5]} 40.
Kg2 {[%clk 0:00:14.4]} 40... b4 {[%clk 0:00:11.3]} 41. Rd2 {[%clk 0:00:14.2]}
41... Qc1 {[%clk 0:00:11.1]} 42. Be4 {[%clk 0:00:14]} 42... b3 {[%clk
0:00:11.2]} 43. Qf3 {[%clk 0:00:12.7]} 43... Qc4 {[%clk 0:00:09.2]} 44. Rd3
{[%clk 0:00:08.2]} 44... b2 {[%clk 0:00:09.4]} 45. Rb3 {[%clk 0:00:07.8]} 45...
Rxd4 {[%clk 0:00:10.1]} 46. Bb1 {[%clk 0:00:07.3]} 46... Rxg4+ {[%clk
0:00:09.6]} 47. Kh3 {[%clk 0:00:06.5]} 47... Rh4+ {[%clk 0:00:09.2]} 48. Kg2
{[%clk 0:00:07.1]} 48... Qg4+ {[%clk 0:00:07.6]} 49. Qxg4 {[%clk 0:00:07.2]}
49... Rxg4+ {[%clk 0:00:08.5]} 50. Kf3 {[%clk 0:00:07.4]} 50... Rb4 {[%clk
0:00:09]} 51. Rxb4 {[%clk 0:00:07.2]} 51... Bxb4 {[%clk 0:00:09.9]} 52. hxg6
{[%clk 0:00:06.1]} 52... hxg6 {[%clk 0:00:10.8]} 0-1

[Event "Early-Titled-Tuesday-Blitz-October-03-2023"]
[Site "Chess.com"]
[Date "2023.10.03"]
[Round "3"]
[White "CSB7"]
[Black "Marcin"]
[Result "0-1"]
[WhiteElo "2731"]
[BlackElo "2508"]
[TimeControl "180+1"]
[EndTime "8:29:37 PDT"]
[Termination "Marcin won by checkmate"]

1. d4 {[%clk 0:03:00.9]} 1... Nf6 {[%clk 0:02:55.6]} 2. c4 {[%clk 0:03:00.6]}
2... g6 {[%clk 0:02:55.2]} 3. f3 {[%clk 0:02:58.9]} 3... Bg7 {[%clk 0:02:53.5]}
4. e4 {[%clk 0:02:58.6]} 4... d6 {[%clk 0:02:53.6]} 5. Ne2 {[%clk 0:02:58.7]}
5... O-O {[%clk 0:02:53.5]} 6. Nec3 {[%clk 0:02:58.4]} 6... e5 {[%clk
0:02:49.1]} 7. d5 {[%clk 0:02:54.3]} 7... a5 {[%clk 0:02:48.5]} 8. Be3 {[%clk
0:02:47.6]} 8... Na6 {[%clk 0:02:48.3]} 9. Na3 {[%clk 0:02:16.6]} 9... Nh5
{[%clk 0:02:44.9]} 10. Qd2 {[%clk 0:02:15.7]} 10... Nf4 {[%clk 0:02:44.1]} 11.
g3 {[%clk 0:01:52.9]} 11... Nh5 {[%clk 0:02:42.3]} 12. O-O-O {[%clk 0:01:51.4]}
12... Bd7 {[%clk 0:02:39.3]} 13. Nab5 {[%clk 0:01:36.2]} 13... Kh8 {[%clk
0:02:38]} 14. Be2 {[%clk 0:01:31.7]} 14... f5 {[%clk 0:02:11.1]} 15. exf5 {[%clk
0:01:28.4]} 15... gxf5 {[%clk 0:02:10.8]} 16. f4 {[%clk 0:01:28]} 16... exf4
{[%clk 0:02:08.5]} 17. gxf4 {[%clk 0:01:27.2]} 17... Nf6 {[%clk 0:02:08.3]} 18.
Rhg1 {[%clk 0:01:24.5]} 18... Rf7 {[%clk 0:02:05.4]} 19. Bd4 {[%clk 0:01:16.1]}
19... Bxb5 {[%clk 0:02:01.1]} 20. Nxb5 {[%clk 0:01:10.2]} 20... Nc5 {[%clk
0:02:01.3]} 21. Bd3 {[%clk 0:01:04.1]} 21... Qd7 {[%clk 0:01:34.1]} 22. Bc2
{[%clk 0:00:55.1]} 22... Rg8 {[%clk 0:01:32.8]} 23. Qxa5 {[%clk 0:00:49.7]}
23... b6 {[%clk 0:01:29.5]} 24. Qe1 {[%clk 0:00:33.7]} 24... Nfe4 {[%clk
0:01:29]} 25. Qe3 {[%clk 0:00:31.3]} 25... Qe7 {[%clk 0:01:25.7]} 26. Kb1 {[%clk
0:00:23.7]} 26... Qh4 {[%clk 0:01:25.3]} 27. Nc3 {[%clk 0:00:17.6]} 27... Re7
{[%clk 0:00:55.7]} 28. Nxe4 {[%clk 0:00:10.5]} 28... Nxe4 {[%clk 0:00:54.8]} 29.
Rxg7 {[%clk 0:00:10.6]} 29... Rgxg7 {[%clk 0:00:54.7]} 30. Bxg7+ {[%clk
0:00:07.6]} 30... Kxg7 {[%clk 0:00:54.7]} 31. Rg1+ {[%clk 0:00:04.9]} 31... Kf7
{[%clk 0:00:54.1]} 32. Qd4 {[%clk 0:00:03.5]} 32... Qxf4 {[%clk 0:00:48]} 33.
Qg7+ {[%clk 0:00:03]} 33... Ke8 {[%clk 0:00:47.9]} 34. Qh8+ {[%clk 0:00:02.8]}
34... Kd7 {[%clk 0:00:48.3]} 35. Qa8 {[%clk 0:00:01.9]} 35... Nd2+ {[%clk
0:00:35.1]} 36. Ka1 {[%clk 0:00:01.8]} 36... Qxc4 {[%clk 0:00:34.9]} 37. Qc6+
{[%clk 0:00:02.4]} 37... Qxc6 {[%clk 0:00:34.7]} 38. dxc6+ {[%clk 0:00:03.2]}
38... Kxc6 {[%clk 0:00:35.2]} 39. Bxf5 {[%clk 0:00:03.9]} 39... Nf3 {[%clk
0:00:33.6]} 40. Rc1+ {[%clk 0:00:02.8]} 40... Kd5 {[%clk 0:00:32.2]} 41. h3
{[%clk 0:00:03]} 41... c5 {[%clk 0:00:31.5]} 42. b3 {[%clk 0:00:03.4]} 42... h6
{[%clk 0:00:29.3]} 43. Bg4 {[%clk 0:00:03.3]} 43... Nd4 {[%clk 0:00:24.9]} 44.
Rf1 {[%clk 0:00:03]} 44... Re5 {[%clk 0:00:18.5]} 45. Kb2 {[%clk 0:00:02.6]}
45... b5 {[%clk 0:00:18.7]} 46. Bd1 {[%clk 0:00:03.1]} 46... b4 {[%clk
0:00:19.1]} 47. a3 {[%clk 0:00:03.1]} 47... Rg5 {[%clk 0:00:18.7]} 48. axb4
{[%clk 0:00:03]} 48... cxb4 {[%clk 0:00:19.6]} 49. Rf2 {[%clk 0:00:03]} 49...
Rg3 {[%clk 0:00:20]} 50. Rf4 {[%clk 0:00:01.1]} 50... Rxh3 {[%clk 0:00:18.6]}
51. Rf6 {[%clk 0:00:01.5]} 51... Rh2+ {[%clk 0:00:18.4]} 52. Kc1 {[%clk
0:00:01.4]} 52... Kc5 {[%clk 0:00:18.7]} 53. Rf1 {[%clk 0:00:01.9]} 53... d5
{[%clk 0:00:18.9]} 54. Rf8 {[%clk 0:00:02.3]} 54... Nb5 {[%clk 0:00:19]} 55.
Rc8+ {[%clk 0:00:02.8]} 55... Kd4 {[%clk 0:00:19.4]} 56. Rb8 {[%clk 0:00:03]}
56... Nc3 {[%clk 0:00:18.9]} 57. Rxb4+ {[%clk 0:00:03.6]} 57... Kd3 {[%clk
0:00:19.5]} 58. Bg4 {[%clk 0:00:02.5]} 58... Rh1+ {[%clk 0:00:19.1]} 59. Kb2
{[%clk 0:00:02.8]} 59... Rb1+ {[%clk 0:00:18.9]} 60. Ka3 {[%clk 0:00:03.3]}
60... Ra1+ {[%clk 0:00:19.5]} 61. Kb2 {[%clk 0:00:04.2]} 61... Ra2+ {[%clk
0:00:20.1]} 62. Kc1 {[%clk 0:00:04.8]} 62... Rc2# {[%clk 0:00:20.8]} 0-1

[Event "Early-Titled-Tuesday-Blitz-October-03-2023"]
[Site "Chess.com"]
[Date "2023.10.03"]
[Round "3"]
[White "Indianlad"]
[Black "Zablotsky"]
[Result "1/2-1/2"]
[WhiteElo "3028"]
[BlackElo "2733"]
[TimeControl "180+1"]
[EndTime "8:29:38 PDT"]
[Termination "Game drawn by stalemate"]

1. c4 {[%clk 0:02:56.2]} 1... e5 {[%clk 0:02:59.6]} 2. g3 {[%clk 0:02:56.1]}
2... g6 {[%clk 0:02:57.8]} 3. Bg2 {[%clk 0:02:56.4]} 3... Bg7 {[%clk 0:02:57.7]}
4. d3 {[%clk 0:02:56.6]} 4... d6 {[%clk 0:02:56.2]} 5. Nf3 {[%clk 0:02:56.5]}
5... f5 {[%clk 0:02:56.3]} 6. O-O {[%clk 0:02:56.5]} 6... Nf6 {[%clk 0:02:56.7]}
7. Nc3 {[%clk 0:02:56.6]} 7... O-O {[%clk 0:02:56.9]} 8. Bg5 {[%clk 0:02:54.9]}
8... h6 {[%clk 0:02:55.2]} 9. Bxf6 {[%clk 0:02:54.9]} 9... Qxf6 {[%clk
0:02:56.1]} 10. Nd2 {[%clk 0:02:54.8]} 10... c6 {[%clk 0:02:54.6]} 11. b4 {[%clk
0:02:46.4]} 11... a6 {[%clk 0:02:52.4]} 12. a4 {[%clk 0:02:44.4]} 12... e4
{[%clk 0:02:45.7]} 13. Rc1 {[%clk 0:02:42.4]} 13... exd3 {[%clk 0:02:41.1]} 14.
exd3 {[%clk 0:02:40.1]} 14... Nd7 {[%clk 0:02:41.1]} 15. b5 {[%clk 0:02:37.4]}
15... axb5 {[%clk 0:02:41.2]} 16. axb5 {[%clk 0:02:37.4]} 16... Ne5 {[%clk
0:02:32.8]} 17. bxc6 {[%clk 0:02:22.9]} 17... bxc6 {[%clk 0:02:33.7]} 18. Nf3
{[%clk 0:01:38.7]} 18... Bd7 {[%clk 0:02:26.6]} 19. Nxe5 {[%clk 0:01:37.9]}
19... dxe5 {[%clk 0:02:27.5]} 20. Na4 {[%clk 0:01:35.1]} 20... Qd6 {[%clk
0:02:10.9]} 21. c5 {[%clk 0:01:34.4]} 21... Qc7 {[%clk 0:01:53]} 22. Nb6 {[%clk
0:01:33.5]} 22... Ra3 {[%clk 0:01:50.8]} 23. Ra1 {[%clk 0:01:18.7]} 23... Rc3
{[%clk 0:01:34.4]} 24. Ra5 {[%clk 0:01:17.5]} 24... Be6 {[%clk 0:01:30.8]} 25.
Qa4 {[%clk 0:01:14.6]} 25... Rxd3 {[%clk 0:01:19]} 26. Ra7 {[%clk 0:01:14.8]}
26... Qd8 {[%clk 0:01:12.9]} 27. Qxc6 {[%clk 0:01:14.7]} 27... Bf7 {[%clk
0:01:09.3]} 28. h4 {[%clk 0:01:04.6]} 28... e4 {[%clk 0:01:08.6]} 29. h5 {[%clk
0:00:52]} 29... gxh5 {[%clk 0:01:06.7]} 30. Bh3 {[%clk 0:00:52.4]} 30... Qd4
{[%clk 0:00:57.6]} 31. Kg2 {[%clk 0:00:43.4]} 31... f4 {[%clk 0:00:44.2]} 32.
Be6 {[%clk 0:00:38.6]} 32... Bxe6 {[%clk 0:00:22.6]} 33. Qxe6+ {[%clk
0:00:38.1]} 33... Kh8 {[%clk 0:00:21.7]} 34. Rd7 {[%clk 0:00:37.6]} 34... Qxc5
{[%clk 0:00:15.7]} 35. Qxe4 {[%clk 0:00:37.4]} 35... f3+ {[%clk 0:00:14.4]} 36.
Kg1 {[%clk 0:00:34.9]} 36... Rb3 {[%clk 0:00:12.8]} 37. Nc4 {[%clk 0:00:32.3]}
37... Rb4 {[%clk 0:00:12.9]} 38. Qg6 {[%clk 0:00:32.3]} 38... Qg5 {[%clk
0:00:11.8]} 39. Rxg7 {[%clk 0:00:16.3]} 39... Qxg6 {[%clk 0:00:11.9]} 40. Rxg6
{[%clk 0:00:17.2]} 40... Rxc4 {[%clk 0:00:12.6]} 41. Rxh6+ {[%clk 0:00:18]}
41... Kg7 {[%clk 0:00:13.4]} 42. Rxh5 {[%clk 0:00:18.9]} 42... Kg6 {[%clk
0:00:14.2]} 43. Rh3 {[%clk 0:00:19.3]} 43... Kg5 {[%clk 0:00:13.9]} 44. Re1
{[%clk 0:00:19.4]} 44... Rfc8 {[%clk 0:00:13.9]} 45. Re5+ {[%clk 0:00:19]} 45...
Kf6 {[%clk 0:00:13.9]} 46. Re3 {[%clk 0:00:19.1]} 46... Rc3 {[%clk 0:00:14]} 47.
g4 {[%clk 0:00:16.8]} 47... Rxe3 {[%clk 0:00:13.6]} 48. fxe3 {[%clk 0:00:17.7]}
48... Kg5 {[%clk 0:00:14.1]} 49. Rxf3 {[%clk 0:00:18.3]} 49... Kxg4 {[%clk
0:00:14]} 50. Rf4+ {[%clk 0:00:18.8]} 50... Kg5 {[%clk 0:00:14.4]} 51. Kf2
{[%clk 0:00:19.5]} 51... Re8 {[%clk 0:00:14.5]} 52. Kf3 {[%clk 0:00:19.6]} 52...
Re7 {[%clk 0:00:14.6]} 53. Rf8 {[%clk 0:00:19.9]} 53... Kg6 {[%clk 0:00:14.5]}
54. e4 {[%clk 0:00:20.6]} 54... Rf7+ {[%clk 0:00:14.6]} 55. Rxf7 {[%clk
0:00:20.7]} 55... Kxf7 {[%clk 0:00:15.5]} 56. Ke3 {[%clk 0:00:21]} 56... Ke6
{[%clk 0:00:15.6]} 57. Kf4 {[%clk 0:00:21.6]} 57... Kf6 {[%clk 0:00:16.1]} 58.
e5+ {[%clk 0:00:21.8]} 58... Ke6 {[%clk 0:00:16.8]} 59. Ke4 {[%clk 0:00:22.7]}
59... Ke7 {[%clk 0:00:17.5]} 60. Kd5 {[%clk 0:00:23.6]} 60... Kd7 {[%clk
0:00:18.1]} 61. e6+ {[%clk 0:00:24.5]} 61... Ke7 {[%clk 0:00:18.7]} 62. Ke5
{[%clk 0:00:25.1]} 62... Ke8 {[%clk 0:00:19.2]} 63. Kd6 {[%clk 0:00:26]} 63...
Kd8 {[%clk 0:00:19.7]} 64. e7+ {[%clk 0:00:26.9]} 64... Ke8 {[%clk 0:00:20.3]}
65. Ke6 {[%clk 0:00:27.8]} 1/2-1/2

[Event "Early-Titled-Tuesday-Blitz-October-03-2023"]
[Site "Chess.com"]
[Date "2023.10.03"]
[Round "3"]
[White "arenal72"]
[Black "subham777"]
[Result "1-0"]
[WhiteElo "2368"]
[BlackElo "2539"]
[TimeControl "180+1"]
[EndTime "8:29:38 PDT"]
[Termination "arenal72 won by resignation"]

1. e4 {[%clk 0:03:00.9]} 1... e6 {[%clk 0:02:58]} 2. d4 {[%clk 0:02:59.3]} 2...
d5 {[%clk 0:02:57.9]} 3. Nd2 {[%clk 0:02:59.4]} 3... c5 {[%clk 0:02:57.7]} 4.
exd5 {[%clk 0:02:57.8]} 4... Qxd5 {[%clk 0:02:57.2]} 5. Ngf3 {[%clk 0:02:57.9]}
5... cxd4 {[%clk 0:02:57.4]} 6. Bc4 {[%clk 0:02:58.2]} 6... Qd7 {[%clk 0:02:58]}
7. O-O {[%clk 0:02:51]} 7... Nc6 {[%clk 0:02:51]} 8. Nb3 {[%clk 0:02:50.1]} 8...
Nf6 {[%clk 0:02:51.3]} 9. Qe2 {[%clk 0:02:48.2]} 9... a6 {[%clk 0:02:46.5]} 10.
a4 {[%clk 0:02:39.3]} 10... Bd6 {[%clk 0:02:43.3]} 11. Rd1 {[%clk 0:02:33.3]}
11... O-O {[%clk 0:02:38.8]} 12. Nbxd4 {[%clk 0:02:32.5]} 12... Nxd4 {[%clk
0:02:38.3]} 13. Rxd4 {[%clk 0:02:31]} 13... Qc7 {[%clk 0:02:32.1]} 14. b3 {[%clk
0:02:28.6]} 14... e5 {[%clk 0:02:18.4]} 15. Rxd6 {[%clk 0:02:24.4]} 15... Qxd6
{[%clk 0:02:16.1]} 16. Ba3 {[%clk 0:02:24.3]} 16... Qc7 {[%clk 0:02:03.8]} 17.
Bxf8 {[%clk 0:02:22.4]} 17... Kxf8 {[%clk 0:02:04.7]} 18. Qxe5 {[%clk
0:02:21.2]} 18... Qxe5 {[%clk 0:01:58.3]} 19. Nxe5 {[%clk 0:02:22.1]} 19... Bf5
{[%clk 0:01:58.3]} 20. c3 {[%clk 0:02:21.9]} 20... Bg6 {[%clk 0:01:53.8]} 21. f3
{[%clk 0:02:15.7]} 21... Rc8 {[%clk 0:01:52.1]} 22. Kf2 {[%clk 0:02:11.9]} 22...
b5 {[%clk 0:01:44.2]} 23. axb5 {[%clk 0:02:09.9]} 23... axb5 {[%clk 0:01:45.1]}
24. Bxb5 {[%clk 0:02:09.9]} 24... Rxc3 {[%clk 0:01:45.7]} 25. Bc4 {[%clk
0:02:01.9]} 25... Rc2+ {[%clk 0:01:43.6]} 26. Kf1 {[%clk 0:01:57.7]} 26... Nh5
{[%clk 0:01:31.3]} 27. Ra8+ {[%clk 0:01:55.1]} 27... Ke7 {[%clk 0:01:31]} 28.
Ra7+ {[%clk 0:01:53.3]} 28... Kf6 {[%clk 0:01:25.2]} 29. Nxf7 {[%clk 0:01:44.1]}
29... Nf4 {[%clk 0:01:20.7]} 30. Ra6+ {[%clk 0:01:40.8]} 30... Ke7 {[%clk
0:01:12.9]} 31. Ne5 {[%clk 0:01:39.8]} 31... Be8 {[%clk 0:00:57.3]} 32. g3
{[%clk 0:01:32.6]} 32... Ng2 {[%clk 0:00:53.6]} 33. Re6+ {[%clk 0:01:29.2]}
33... Kd8 {[%clk 0:00:52.4]} 34. Nd3 {[%clk 0:01:11.6]} 34... Bd7 {[%clk
0:00:51.2]} 35. Re2 {[%clk 0:01:11.1]} 35... Bh3 {[%clk 0:00:36.7]} 36. Rxc2
{[%clk 0:01:09.6]} 36... Ne3+ {[%clk 0:00:37.2]} 37. Ke2 {[%clk 0:01:09.7]}
37... Nxc2 {[%clk 0:00:37.8]} 38. Nf4 {[%clk 0:01:08.8]} 38... Bd7 {[%clk
0:00:35.3]} 39. Kd3 {[%clk 0:01:05]} 39... Ne1+ {[%clk 0:00:34.5]} 40. Ke3
{[%clk 0:01:05.2]} 40... Nc2+ {[%clk 0:00:30.4]} 41. Ke4 {[%clk 0:01:05.4]}
41... g6 {[%clk 0:00:27.6]} 42. Bg8 {[%clk 0:01:02.1]} 42... Bf5+ {[%clk
0:00:23.5]} 43. Ke5 {[%clk 0:01:01.7]} 43... Ne1 {[%clk 0:00:19.2]} 44. Bd5
{[%clk 0:01:01.2]} 44... Ke7 {[%clk 0:00:16.8]} 45. b4 {[%clk 0:00:59.5]} 45...
Bd7 {[%clk 0:00:12.9]} 46. Bc4 {[%clk 0:00:56.5]} 46... Nxf3+ {[%clk 0:00:11.7]}
47. Ke4 {[%clk 0:00:53.9]} 47... Nxh2 {[%clk 0:00:10.6]} 48. b5 {[%clk
0:00:53.5]} 48... Kd6 {[%clk 0:00:09.6]} 49. b6 {[%clk 0:00:45.8]} 49... Ng4
{[%clk 0:00:06.9]} 50. Nd5 {[%clk 0:00:32.5]} 50... Bc6 {[%clk 0:00:06.1]} 51.
Kd4 {[%clk 0:00:26.8]} 51... Bxd5 {[%clk 0:00:04.1]} 52. Bxd5 {[%clk 0:00:27.7]}
52... Nf6 {[%clk 0:00:04.7]} 53. b7 {[%clk 0:00:25.5]} 53... Kc7 {[%clk
0:00:04.2]} 54. Bf3 {[%clk 0:00:24.2]} 54... h5 {[%clk 0:00:04.2]} 55. Ke5
{[%clk 0:00:24.1]} 55... Nd7+ {[%clk 0:00:04.2]} 56. Ke6 {[%clk 0:00:22.6]}
56... Nf8+ {[%clk 0:00:01.4]} 57. Kf7 {[%clk 0:00:21.6]} 57... g5 {[%clk
0:00:02.3]} 58. Kxf8 {[%clk 0:00:19.9]} 58... h4 {[%clk 0:00:03]} 59. g4 {[%clk
0:00:16]} 59... h3 {[%clk 0:00:03.1]} 60. Kg7 {[%clk 0:00:16.4]} 60... Kd6
{[%clk 0:00:02.6]} 61. b8=Q+ {[%clk 0:00:15.8]} 1-0